bitfinex-derivatives/quotes_BNBF0:USTF0_20250511
["timestamp","ask_amount","ask_price","bid_price","bid_amount"]
[1746947955113,0.24064581,657.28,655.58,0.627]
[1746947955410,0.24064581,657.27,655.58,0.627]
[1746947955712,0.24064581,657.26,655.58,0.627]
[1746947956013,0.24064581,657.25,655.58,0.627]
[1746947956212,0.26508328,657.3,655.58,0.627]
[1746947956709,0.24060304,657.29,655.58,0.627]
[1746947957714,0.26506712,657.28,655.58,0.627]
[1746947958313,0.24060304,657.27,655.58,0.627]
[1746947959014,0.26506712,657.28,655.58,0.627]
[1746947959413,0.24057041,657.27,655.58,0.627]
[1746947959919,0.24057041,657.26,655.58,0.627]
[1746947960218,0.26506712,657.28,655.58,0.627]
[1746947960219,0.24057041,657.25,655.58,0.627]
[1746947960518,0.24057041,657.24,655.58,0.627]
[1746947960819,0.24057041,657.23,655.58,0.627]
[1746947961120,0.24057041,657.22,655.58,0.627]
[1746947961416,0.24057041,657.21,655.58,0.627]
[1746947961821,0.24057041,657.2,655.58,0.627]
[1746947962122,0.24057041,657.19,655.58,0.627]
[1746947962415,0.24057041,657.18,655.58,0.627]
[1746947962822,0.26506712,657.28,655.58,0.627]
[1746947963220,0.24054895,657.27,655.58,0.627]
[1746947963722,0.50566252,657.26,655.58,0.627]
[1746947964224,0.24054895,657.25,655.58,0.627]
[1746947965721,0.24054895,657.25,655.57,0.30507802]
[1746947966726,0.26515195,657.24,655.57,0.30507802]
[1746947967123,0.24054895,657.23,655.57,0.30507802]
[1746947967725,0.24054895,657.22,655.57,0.30507802]
[1746947968220,0.24054895,657.23,655.57,0.30507802]
[1746947968727,0.26515195,657.24,655.57,0.30507802]
[1746947969026,0.2405036,657.23,655.57,0.30507802]
[1746947969223,0.2405036,657.22,655.57,0.30507802]
[1746947969624,0.50564545,657.21,655.57,0.30507802]
[1746947970430,0.2405036,657.2,655.57,0.30507802]
[1746947970830,0.2405036,657.19,655.57,0.30507802]
[1746947971231,0.2405036,657.18,655.57,0.30507802]
[1746947971527,0.26514185,657.21,655.57,0.30507802]
[1746947971830,0.24048963,657.2,655.57,0.30507802]
[1746947973238,0.24048963,657.38,655.57,0.30507802]
[1746947973535,0.24048963,657.37,655.58,0.612]
[1746947973835,0.24048963,657.36,655.58,0.612]
[1746947974235,0.24048963,657.35,655.58,0.612]
[1746947974631,0.24048963,657.36,655.58,0.612]
[1746947975734,0.26512771,657.35,655.58,0.612]
[1746947976136,0.24048963,657.34,655.58,0.612]
[1746947977431,0.24048963,657.33,655.58,0.612]
[1746947977631,0.24048963,657.34,655.58,0.612]
[1746947977933,0.24048963,657.33,655.58,0.612]
[1746947978238,0.24048963,657.34,655.58,0.612]
[1746947978837,0.24048963,657.41,655.58,0.612]
[1746947979937,0.26506107,657.4,655.58,0.612]
[1746947980239,0.24048963,657.39,655.58,0.612]
[1746947981740,0.26505905,657.38,655.58,0.612]
[1746947981943,0.24048963,657.37,655.58,0.612]
[1746947982742,0.24048963,657.36,655.58,0.612]
[1746947983041,0.24048963,657.35,655.58,0.612]
[1746947983337,0.24048963,657.34,655.58,0.612]
[1746947983637,0.24048963,657.33,655.58,0.612]
[1746947983941,0.24048963,657.32,655.58,0.612]
[1746947984343,0.24048963,657.31,655.58,0.612]
[1746947984642,0.26507722,657.3,655.57,0.57015524]
[1746947984844,0.24048963,657.29,655.57,0.57015524]
[1746947986342,0.26507722,657.3,655.57,0.57015524]
[1746947986843,0.24059646,657.29,655.57,0.57015524]
[1746947987743,0.24059646,657.29,655.58,0.592]
[1746947989745,0.26507722,657.3,655.58,0.592]
[1746947990244,0.24064553,657.29,655.58,0.592]
[1746947990748,0.26502473,657.28,655.58,0.592]
[1746947991349,0.24064553,657.27,655.58,0.592]
[1746947993647,0.24064553,657.41,655.58,0.592]
[1746947994853,0.26502271,657.4,655.58,0.592]
[1746947995455,0.24064553,657.39,655.58,0.592]
[1746948005957,0.24064553,657.38,655.59,0.28002774]
[1746948006257,0.24064553,657.37,655.59,0.28002774]
[1746948006656,0.24064553,657.36,655.59,0.28002774]
[1746948006957,0.26502271,657.4,655.59,0.28002774]
[1746948006958,0.24064553,657.35,655.59,0.28002774]
[1746948007354,0.24064553,657.34,655.59,0.28002774]
[1746948007654,0.24064553,657.33,655.59,0.28002774]
[1746948007956,0.24064553,657.32,655.59,0.28002774]
[1746948008354,0.24064553,657.31,655.59,0.28002774]
[1746948008661,0.24064553,657.3,655.59,0.28002774]
[1746948008959,0.24064553,657.32,655.59,0.28002774]
[1746948010659,0.24064553,657.32,655.58,0.592]
[1746948011756,0.24064553,657.32,655.57,0.26503281]
[1746948012363,0.24064553,657.43,655.58,0.2799875]
[1746948012961,0.24064553,657.95,655.58,0.2799875]
[1746948013359,0.24064553,657.94,655.58,0.2799875]
[1746948013662,0.24064553,657.93,655.58,0.2799875]
[1746948014067,0.24064553,657.92,655.58,0.2799875]
[1746948014256,0.24064553,657.92,655.59,0.404]
[1746948014461,0.24064553,657.91,655.6,0.2799875]
[1746948014660,0.50560367,657.91,655.6,0.2799875]
[1746948014860,0.24064553,657.9,655.6,0.2799875]
[1746948015056,1.92318063,657.86,655.6,0.2799875]
[1746948015558,0.30406689,657.75,655.6,0.2799875]
[1746948015763,0.24064553,657.74,655.6,0.2799875]
[1746948016062,0.24064553,657.73,655.6,0.2799875]
[1746948016462,0.24064553,657.72,655.6,0.2799875]
[1746948016762,0.24064553,657.71,655.6,0.2799875]
[1746948016963,1.92318063,657.59,655.6,0.2799875]
[1746948017161,1.92318063,657.59,655.59,0.66896722]
[1746948017463,1.92318063,657.59,655.59,0.404]
[1746948017657,0.24064553,657.58,655.59,0.404]
[1746948017861,0.50566421,657.58,655.59,0.66901868]
[1746948018165,0.24064553,657.57,655.59,0.66901868]
[1746948018464,0.24064553,657.56,655.59,0.66901868]
[1746948018860,0.24064553,657.55,655.59,0.66901868]
[1746948019265,0.24064553,657.54,655.59,0.66901868]
[1746948019562,0.24064553,657.53,655.59,0.66901868]
[1746948019967,0.24064553,657.52,655.59,0.66901868]
[1746948020366,0.24064553,657.51,655.59,0.66901868]
[1746948020566,0.24064553,657.51,655.59,0.404]
[1746948020766,0.24064553,657.5,655.59,0.66905703]
[1746948022971,0.24064553,657.49,655.59,0.66905703]
[1746948023274,0.24064553,657.48,655.59,0.404]
[1746948023663,0.50589449,657.47,655.59,0.404]
[1746948023970,0.24064553,657.46,655.59,0.404]
[1746948024876,0.24064553,657.45,655.59,0.404]
[1746948025372,0.24064553,657.44,655.59,0.404]
[1746948025670,0.24064553,657.43,655.59,0.404]
[1746948025875,0.24064553,657.46,655.59,0.404]
[1746948026271,0.24064553,657.45,655.59,0.404]
[1746948026666,0.26507116,657.44,655.59,0.404]
[1746948027070,0.24064553,657.43,655.59,0.404]
[1746948028874,0.24064553,657.42,655.59,0.404]
[1746948029675,0.26504996,657.41,655.59,0.404]
[1746948030276,0.50569549,657.41,655.59,0.404]
[1746948030475,0.24064553,657.4,655.59,0.404]
[1746948030869,0.30423803,657.38,655.59,0.404]
[1746948031978,0.24064553,657.37,655.59,0.404]
[1746948032275,0.24064553,657.36,655.54,0.26505097]
[1746948032471,0.24064553,657.36,653.68,0.62815767]
[1746948032670,0.24064553,657.35,653.86,0.30587587]
[1746948032869,0.24064553,657.34,655.54,0.26528839]
[1746948033069,0.24064553,657.34,653.87,0.90835533]
[1746948033270,0.24064553,657.33,653.88,0.62815767]
[1746948033475,0.24064553,657.32,653.89,0.90835845]
[1746948033677,0.24064553,657.32,653.89,1.86107554]
[1746948033976,0.24064553,657.31,653.9,0.90835845]
[1746948034476,0.24064553,657.34,653.91,0.28020078]
[1746948034775,0.24064553,657.34,653.92,0.28020078]
[1746948035074,0.24064553,657.34,653.93,0.28020078]
[1746948035275,0.24064553,657.34,653.94,0.28020078]
[1746948035676,0.26522874,657.33,653.95,0.28020078]
[1746948036071,0.26522874,657.33,653.92,0.464]
[1746948036072,0.24064553,657.32,653.96,0.90835845]
[1746948036576,0.24064553,657.32,653.97,0.28020078]
[1746948036774,0.24064553,657.32,653.97,0.90835845]
[1746948037078,0.24064553,657.32,653.98,0.90835845]
[1746948037378,0.24064553,657.31,653.99,0.90835845]
[1746948037677,0.24064553,657.3,654.0,0.90835845]
[1746948037982,0.24064553,657.32,654.01,0.90835845]
[1746948038280,0.24064553,657.32,654.38,0.95271709]
[1746948038673,0.24064553,657.31,654.38,0.95271709]
[1746948038874,0.50581162,657.31,654.38,0.95271709]
[1746948039078,0.24064553,657.3,654.39,0.90835845]
[1746948039279,0.24064553,657.29,654.4,0.90835845]
[1746948039578,0.24064553,657.3,654.41,0.90835845]
[1746948039879,0.24064553,657.29,654.42,0.90835845]
[1746948040087,0.24064553,657.29,654.45,0.95271709]
[1746948040281,0.24064553,657.3,654.45,0.95271709]
[1746948040579,0.24064553,657.28,654.46,0.28020078]
[1746948040880,0.24064553,657.3,654.47,0.28020078]
[1746948041281,0.24064553,657.3,654.48,0.28020078]
[1746948041582,0.24064553,657.3,654.49,0.28020078]
[1746948041785,0.26517114,657.29,654.49,0.28020078]
[1746948041977,0.24064553,657.28,654.5,0.28020078]
[1746948042382,0.24064553,657.28,654.51,0.28020078]
[1746948042682,0.26517114,657.29,654.31,0.95271709]
[1746948043079,0.24082633,657.28,654.32,0.90828854]
[1746948043279,0.24082633,657.27,654.33,0.90828854]
[1746948043582,0.24082633,657.27,654.31,0.95271709]
[1746948043583,0.24082633,657.26,654.34,0.90828854]
[1746948043884,0.24082633,657.25,654.35,0.90828854]
[1746948044183,0.24082633,657.24,654.36,0.90828854]
[1746948044685,0.24082633,657.28,654.37,0.28006334]
[1746948044984,0.24082633,657.37,654.38,0.28006334]
[1746948045187,0.24082633,657.27,654.38,0.28006334]
[1746948045484,0.24082633,657.37,654.39,0.28006334]
[1746948045683,0.24082633,657.37,654.4,0.28006334]
[1746948046084,0.24082633,657.37,654.41,0.28006334]
[1746948046480,0.24082633,657.37,654.42,0.28006334]
[1746948046780,0.24082633,657.37,654.43,0.28006334]
[1746948046985,0.24082633,657.37,654.44,0.28006334]
[1746948047282,0.24082633,657.37,654.45,0.28006334]
[1746948048079,0.24082633,657.37,654.46,0.28006334]
[1746948048584,0.24082633,657.37,654.47,0.28006334]
[1746948048986,0.24082633,657.37,654.48,0.28006334]
[1746948049586,0.24082633,657.37,654.49,0.28006334]
[1746948049886,0.24082633,657.37,654.5,0.28006334]
[1746948050186,0.24082633,657.37,654.51,0.28006334]
[1746948050489,0.24082633,657.37,654.52,0.28006334]
[1746948050792,0.50594596,657.37,654.53,0.28006334]
[1746948051087,0.24082633,657.36,654.54,0.28006334]
[1746948051487,0.24082633,657.37,654.55,0.28006334]
[1746948051887,0.24082633,657.37,654.56,0.28006334]
[1746948052089,0.24082633,657.37,654.57,0.28006334]
[1746948052491,0.24082633,657.37,654.58,0.28006334]
[1746948052696,0.24082633,657.37,654.71,0.30547876]
[1746948053091,0.26510549,657.36,654.72,0.77106334]
[1746948053392,0.24082633,657.35,654.73,0.28006334]
[1746948054092,0.24082633,657.35,654.74,0.28006334]
[1746948054299,0.24082633,657.37,654.75,0.28006334]
[1746948054591,0.24082633,657.37,654.76,0.28006334]
[1746948054987,0.24082633,657.37,654.77,0.28006334]
[1746948055293,0.24082633,657.37,654.78,0.28006334]
[1746948055588,0.24082633,657.37,654.79,0.28006334]
[1746948055791,0.24082633,657.37,654.91,0.30538547]
[1746948056389,0.24082633,657.37,654.92,0.28006334]
[1746948056697,0.24082633,657.37,654.93,0.28006334]
[1746948056991,0.24082633,657.37,654.94,0.28006334]
[1746948057297,0.24082633,657.37,654.95,0.28006334]
[1746948057594,0.24082633,657.37,654.91,0.30538547]
[1746948057595,0.24082633,657.37,654.96,0.28006334]
[1746948057794,0.30425192,657.35,655.07,0.30531088]
[1746948058194,0.24082633,657.34,655.08,0.28006334]
[1746948058396,0.24082633,657.34,655.18,0.30525962]
[1746948058594,0.3042658,657.32,655.18,0.30525962]
[1746948058897,0.24082633,657.31,655.19,0.28006334]
[1746948059091,0.30427969,657.29,655.21,0.30524564]
[1746948059695,0.24082633,657.28,655.22,0.28006334]
[1746948059900,0.30429358,657.26,655.24,0.30523167]
[1746948060497,0.24082633,657.25,655.25,0.28006334]
[1746948066799,0.26509135,657.24,655.25,0.28006334]
[1746948067202,0.24082633,657.23,655.25,0.28006334]
[1746948068805,0.26510751,657.22,655.25,0.28006334]
[1746948069202,0.24082633,657.21,655.25,0.28006334]
[1746948072002,0.24082633,657.25,655.25,0.28006334]
[1746948073107,0.24082633,657.25,655.26,0.28006334]
[1746948073807,0.24082633,657.25,655.27,0.28006334]
[1746948074205,0.24082633,657.25,655.28,0.28006334]
[1746948074507,0.24082633,657.25,655.29,0.28006334]
[1746948074908,0.24082633,657.25,655.3,0.28006334]
[1746948075203,0.24082633,657.25,655.31,0.28006334]
[1746948075507,0.24082633,657.25,655.32,0.28006334]
[1746948075805,0.30429358,657.26,655.24,0.30523167]
[1746948076910,0.24072948,657.25,655.25,0.27996152]
[1746948077210,0.24072948,657.25,655.26,0.27996152]
[1746948077510,0.24072948,657.25,655.27,0.27996152]
[1746948077909,0.24072948,657.25,655.24,0.30523167]
[1746948077910,0.24072948,657.25,655.28,0.27996152]
[1746948078403,0.24072948,657.25,655.29,0.27996152]
[1746948078606,0.30429358,657.26,655.24,0.30523167]
[1746948078912,0.24076215,657.25,655.25,0.27993534]
[1746948079309,0.24076215,657.25,655.26,0.27993534]
[1746948079514,0.24076215,657.25,655.27,0.27993534]
[1746948079813,0.24076215,657.25,655.28,0.27993534]
[1746948080313,0.24076215,657.25,655.29,0.27993534]
[1746948080712,0.24076215,657.25,655.3,0.27993534]
[1746948081417,0.24076215,657.25,655.31,0.27993534]
[1746948081811,0.24076215,657.25,655.32,0.27993534]
[1746948082220,0.24076215,657.25,655.33,0.27993534]
[1746948082816,0.24076215,657.25,655.34,0.27993534]
[1746948083518,0.24076215,657.25,655.35,0.27993534]
[1746948083818,0.24076215,657.25,655.36,0.27993534]
[1746948084213,0.24076215,657.25,655.37,0.27993534]
[1746948084518,0.24076215,657.25,655.31,0.27993534]
[1746948086319,0.30429358,657.26,655.31,0.27993534]
[1746948088619,0.30429358,657.26,655.32,0.27993534]
[1746948088919,0.30429358,657.26,655.33,0.27993534]
[1746948089417,0.30429358,657.26,655.34,0.27993534]
[1746948089820,0.30429358,657.26,655.35,0.27993534]
[1746948090020,0.30429358,657.26,655.36,0.27993534]
[1746948090323,0.30429358,657.26,655.31,0.26497126]
[1746948090622,0.30429358,657.26,655.32,0.27984092]
[1746948091021,0.30429358,657.26,655.33,0.27984092]
[1746948091316,0.30429358,657.26,655.34,0.27984092]
[1746948091821,0.30429358,657.26,655.35,0.27984092]
[1746948092417,0.30429358,657.26,655.36,0.27984092]
[1746948092624,0.30429358,657.26,655.37,0.27984092]
[1746948093024,0.30429358,657.26,655.38,0.27984092]
[1746948093224,0.30429358,657.26,655.39,0.27984092]
[1746948093525,0.30429358,657.26,655.4,0.27984092]
[1746948094024,0.30429358,657.26,655.41,0.27984092]
[1746948094224,0.30429358,657.26,655.42,0.27984092]
[1746948094625,0.30429358,657.26,655.34,0.27984092]
[1746948096123,0.30429358,657.26,655.33,0.26497227]
[1746948096429,0.30429358,657.26,655.34,0.27984092]
[1746948096729,0.24101697,657.25,655.35,0.27984092]
[1746948097027,0.24101697,657.25,655.36,0.27984092]
[1746948097528,0.24101697,657.25,655.37,0.27984092]
[1746948097723,0.24101697,657.25,655.38,0.27984092]
[1746948098029,0.24101697,657.25,655.39,0.27984092]
[1746948098531,0.24101697,657.25,655.4,0.27984092]
[1746948099031,0.24101697,657.25,655.35,0.26499345]
[1746948099032,0.24101697,657.25,655.41,0.27984092]
[1746948099330,0.24101697,657.25,655.42,0.27984092]
[1746948099531,0.24101697,657.25,655.43,0.27984092]
[1746948099831,0.24101697,657.25,655.44,0.27984092]
[1746948100128,0.24101697,657.25,655.45,0.27984092]
[1746948100531,0.24101697,657.25,655.46,0.27984092]
[1746948100727,0.24101697,657.25,655.47,0.27984092]
[1746948101126,0.24101697,657.25,655.48,0.27984092]
[1746948101432,0.24101697,657.25,655.49,0.27984092]
[1746948101833,0.24101697,657.25,655.5,0.27984092]
[1746948102131,0.24101697,657.25,655.51,0.27984092]
[1746948102434,0.24101697,657.25,655.52,0.27984092]
[1746948102735,0.24101697,657.25,655.53,0.27984092]
[1746948103035,0.24101697,657.25,655.54,0.27984092]
[1746948103336,0.24101697,657.25,655.55,0.27984092]
[1746948103531,0.24101697,657.25,655.56,0.27984092]
[1746948104038,0.24101697,657.25,655.57,0.27984092]
[1746948104436,0.24101697,657.25,655.58,0.27984092]
[1746948104838,0.24101697,657.25,655.59,0.27984092]
[1746948105337,0.24101697,657.25,655.6,0.27984092]
[1746948105937,0.24101697,657.25,655.61,0.27984092]
[1746948106240,0.24101697,657.25,655.62,0.27984092]
[1746948106440,0.24101697,657.25,655.63,0.27984092]
[1746948106743,0.24101697,657.25,655.48,0.27984092]
[1746948107141,0.24101697,657.25,655.49,0.27984092]
[1746948107442,0.24101697,657.25,655.5,0.27984092]
[1746948107836,0.24101697,657.25,655.51,0.27984092]
[1746948108037,0.24101697,657.25,655.52,0.27984092]
[1746948108441,0.24101697,657.25,655.53,0.27984092]
[1746948108638,0.30429358,657.26,655.48,0.2649531]
[1746948109644,0.2410267,657.25,655.49,0.84884537]
[1746948110045,0.2410267,657.25,655.5,0.27984537]
[1746948110247,0.2410267,657.25,655.51,0.27984537]
[1746948110546,0.2410267,657.25,655.52,0.27984537]
[1746948110746,0.2410267,657.25,655.53,0.27984537]
[1746948111046,0.30429358,657.26,655.5,0.27984537]
[1746948112350,0.24099233,657.25,655.5,0.27984537]
[1746948112649,0.30429358,657.26,655.5,0.27984537]
[1746948113548,0.24103059,657.25,655.5,0.27984537]
[1746948117154,0.30429358,657.26,655.5,0.27984537]
[1746948120159,0.24107714,657.25,655.5,0.27984537]
[1746948120557,0.30429358,657.26,655.5,0.27984537]
[1746948121358,0.30429358,657.26,655.51,0.27984537]
[1746948121660,0.30429358,657.26,655.52,0.27984537]
[1746948122060,0.30429358,657.26,655.53,0.27984537]
[1746948122361,0.30429358,657.26,655.54,0.27984537]
[1746948122660,0.30429358,657.26,655.55,0.27984537]
[1746948123059,0.30429358,657.26,655.56,0.27984537]
[1746948123460,0.30429358,657.26,655.57,0.27984537]
[1746948123860,0.30429358,657.26,655.58,0.27984537]
[1746948124363,0.30429358,657.26,655.59,0.27984537]
[1746948124660,0.30429358,657.26,655.6,0.27984537]
[1746948125162,0.30429358,657.26,655.61,0.27984537]
[1746948125563,0.30429358,657.26,655.62,0.27984537]
[1746948126063,0.30429358,657.26,655.63,0.27984537]
[1746948126463,1.92318063,658.15,655.63,0.27984537]
[1746948126662,1.92318063,658.22,655.63,0.27984537]
[1746948126862,0.26483111,658.14,655.63,0.27984537]
[1746948127059,0.26483111,658.14,655.64,0.27984537]
[1746948127261,0.24114287,658.21,655.64,0.27984537]
[1746948127462,0.5059629,658.13,655.65,0.27984537]
[1746948127762,0.24114287,658.12,655.66,0.27984537]
[1746948127964,0.50595887,658.12,655.66,0.27984537]
[1746948128160,0.50595887,658.12,655.67,0.27984537]
[1746948128364,0.24114287,658.11,655.67,0.27984537]
[1746948128565,0.24114287,658.11,655.68,0.27984537]
[1746948129266,1.92318063,658.73,655.6,0.26481902]
[1746948129267,0.24114287,658.18,655.69,0.27984537]
[1746948129562,0.24114287,658.17,655.7,0.27984537]
[1746948129866,0.24114287,658.3,655.61,0.27984537]
[1746948130067,0.26479383,658.16,655.61,0.27984537]
[1746948130267,0.24114287,658.29,655.62,0.27984537]
[1746948130464,0.26479383,658.15,655.62,0.27984537]
[1746948130665,0.26479383,658.15,655.63,0.27984537]
[1746948130862,0.24114287,658.14,655.64,0.27984537]
[1746948131061,0.5059367,658.14,655.64,0.27984537]
[1746948131265,0.26479383,658.14,655.65,0.27984537]
[1746948131463,0.24114287,658.13,655.66,0.27984537]
[1746948131660,0.24114287,658.13,655.67,0.553]
[1746948131861,0.30394212,658.02,655.76,0.30498963]
[1746948132565,0.24114287,658.01,655.77,0.27984537]
[1746948133171,0.26480693,658.0,655.77,0.27984537]
[1746948133671,0.24114287,657.99,655.77,0.27984537]
[1746948134872,0.26480492,657.98,655.77,0.27984537]
[1746948135174,0.24114287,657.97,655.77,0.27984537]
[1746948137869,0.26479887,657.96,655.77,0.27984537]
[1746948138271,0.24114287,657.95,655.77,0.27984537]
[1746948140681,0.24114287,657.95,655.87,0.30493847]
[1746948140879,0.26478678,658.0,655.87,0.30493847]
[1746948141279,0.24114287,657.99,655.88,0.27984537]
[1746948143177,0.24114287,657.99,655.9,0.30492453]
[1746948143379,0.24114287,657.99,655.91,0.27984537]
[1746948146781,0.26481298,657.98,655.91,0.27984537]
[1746948147182,0.24114287,657.97,655.91,0.27984537]
[1746948151083,0.26481298,657.98,655.9,0.30492453]
[1746948151387,0.26481298,657.98,655.91,0.27973412]
[1746948151579,0.24106373,657.97,655.91,0.27973412]
[1746948152785,0.50584245,657.97,655.91,0.27973412]
[1746948153182,0.24106373,657.96,655.91,0.27973412]
[1746948154385,0.24106373,657.96,655.93,0.30491058]
[1746948154585,0.30397908,657.94,655.94,0.27973412]
[1746948154986,0.24106373,657.93,655.96,0.30489664]
[1746948155381,0.24106373,657.93,655.97,0.27973412]
[1746948155588,0.30399294,657.91,655.99,0.30488269]
[1746948155788,0.24106373,657.9,656.0,0.27973412]
[1746948156087,0.24106373,657.9,656.02,0.30486875]
[1746948156284,0.3040068,657.88,656.02,0.30486875]
[1746948156487,0.24106373,657.87,656.03,0.27973412]
[1746948156683,0.24106373,657.87,656.04,0.30485945]
[1746948156883,0.30402067,657.85,656.04,0.30485945]
[1746948157388,0.24106373,657.84,656.05,0.27973412]
[1746948157887,0.24106373,657.84,656.06,0.30485016]
[1746948158088,0.30403453,657.82,656.06,0.30485016]
[1746948158285,0.24106373,657.81,656.07,0.27973412]
[1746948158489,0.3040484,657.79,656.08,0.30484087]
[1746948158985,0.24106373,657.78,656.09,0.27973412]
[1746948165397,0.24106373,657.78,656.1,0.427]
[1746948165697,0.24106373,657.78,656.11,0.27973412]
[1746948168502,0.24106373,657.78,656.12,0.30482228]
[1746948168703,0.30406227,657.76,656.12,0.30482228]
[1746948168904,0.30406227,657.76,656.13,0.27973412]
[1746948169103,0.24106373,657.75,656.13,0.27973412]
[1746948169404,0.30406227,657.76,656.14,0.30481299]
[1746948169903,0.24168986,657.75,656.15,0.27973072]
[1746948170204,0.30407151,657.74,656.16,0.3048037]
[1746948170503,0.24168986,657.73,656.16,0.3048037]
[1746948170703,0.30408076,657.72,656.16,0.3048037]
[1746948170904,0.24168986,657.71,656.16,0.3048037]
[1746948171905,0.30409001,657.7,656.16,0.3048037]
[1746948172503,0.24168986,657.69,656.16,0.3048037]
[1746948172702,0.30409925,657.68,656.16,0.3048037]
[1746948173209,0.24168986,657.67,656.16,0.3048037]
[1746948173507,0.3041085,657.66,656.16,0.3048037]
[1746948173907,0.24168986,657.65,656.16,0.3048037]
[1746948174207,0.30411775,657.64,656.16,0.3048037]
[1746948176309,0.30411775,657.64,656.17,0.27972391]
[1746948176505,0.30411775,657.64,656.18,0.30479441]
[1746948176907,0.24168684,657.63,656.19,0.2797258]
[1746948177207,0.24168684,657.63,656.2,0.30478512]
[1746948178510,0.24168684,657.63,656.21,0.27972892]
[1746948178706,0.24168684,657.63,656.22,0.30477583]
[1746948179608,0.24168684,657.63,656.23,0.27973033]
[1746948180711,0.30411775,657.64,656.22,0.30477583]
[1746948181011,0.24168961,657.63,656.23,0.279724]
[1746948182005,0.24168961,657.63,656.24,0.30476654]
[1746948182704,0.24168961,657.63,656.25,0.448]
[1746948182907,0.24168961,657.63,656.26,0.30475726]
[1746948183313,0.24168961,657.63,656.27,0.279724]
[1746948184407,0.24168961,657.63,656.26,0.30475726]
[1746948184609,0.30411775,657.64,656.26,0.30475726]
[1746948185412,0.24162938,657.63,656.26,0.30475726]
[1746948185913,0.30411775,657.64,656.26,0.30475726]
[1746948188113,0.24159035,657.63,656.26,0.30475726]
[1746948189909,0.24159035,657.63,656.25,0.448]
[1746948193717,0.24159035,657.63,656.15,0.26491377]
[1746948194516,0.24159035,657.63,655.12,0.95271709]
[1746948194712,0.24159035,657.63,655.24,0.30523167]
[1746948194914,0.30411775,657.64,656.15,0.26492184]
[1746948195113,0.30411775,657.64,655.24,0.30523167]
[1746948195317,0.30411775,657.64,656.15,0.26483817]
[1746948195615,0.30411775,657.64,655.24,0.30523167]
[1746948195815,0.30411775,657.64,656.15,0.26483817]
[1746948196217,0.30411775,657.64,655.24,0.30523167]
[1746948196418,0.30411775,657.64,656.15,0.26483817]
[1746948196618,0.30411775,657.64,655.25,0.411]
[1746948197019,0.30411775,657.64,656.15,0.26475354]
[1746948197219,0.30411775,657.64,655.26,0.27977961]
[1746948197419,0.30411775,657.64,655.25,0.411]
[1746948198020,0.30411775,657.64,655.26,0.27977946]
[1746948199017,0.24162305,657.63,655.27,0.27977946]
[1746948199322,0.24162305,657.63,655.38,0.30516646]
[1746948199822,0.304127,657.62,655.38,0.30516646]
[1746948200022,0.304127,657.62,655.39,0.27977946]
[1746948200217,0.24162305,657.61,655.4,0.27977946]
[1746948200520,0.24162305,657.61,655.41,0.27977946]
[1746948200917,0.24162305,657.61,655.42,0.27977946]
[1746948201414,0.24162305,657.61,655.43,0.27977946]
[1746948201619,0.24162305,657.61,655.44,0.27977946]
[1746948202017,0.304127,657.62,655.45,0.27977946]
[1746948202724,0.304127,657.62,655.55,0.30508733]
[1746948203325,0.304127,657.62,655.56,0.27977946]
[1746948204426,0.304127,657.62,655.57,0.27977946]
[1746948204723,0.304127,657.62,655.58,0.27977946]
[1746948205023,0.304127,657.62,655.59,0.27977946]
[1746948205424,0.304127,657.62,655.6,0.27977946]
[1746948205825,0.304127,657.62,655.56,0.27977946]
[1746948206125,0.304127,657.62,655.57,0.27977946]
[1746948206624,0.304127,657.62,655.56,0.27977946]
[1746948210121,0.304127,657.62,655.66,0.30503614]
[1746948210428,0.304127,657.62,655.67,0.27977946]
[1746948211629,0.304127,657.62,655.69,0.30502219]
[1746948213029,0.304127,657.62,655.7,0.27977946]
[1746948213231,0.304127,657.62,655.69,0.30502219]
[1746948213232,0.304127,657.62,655.72,0.30500823]
[1746948213530,0.304127,657.62,655.73,0.27977946]
[1746948214625,0.304127,657.62,655.74,0.27977946]
[1746948214829,0.304127,657.62,655.75,0.27977946]
[1746948215027,0.304127,657.62,655.76,0.27977946]
[1746948215330,0.304127,657.62,655.77,0.27977946]
[1746948215530,0.304127,657.62,655.78,0.27977946]
[1746948216025,0.304127,657.62,655.79,0.27977946]
[1746948216525,0.304127,657.62,655.8,0.27977946]
[1746948216925,0.304127,657.62,655.73,0.27977946]
[1746948218332,0.304127,657.62,655.74,0.56]
[1746948218727,0.304127,657.62,655.75,0.27977946]
[1746948219537,1.92318063,659.54,655.77,0.30498497]
[1746948219734,0.30332443,659.36,655.77,0.30498497]
[1746948220434,0.2417301,659.35,655.78,0.27977946]
[1746948220733,0.2417301,659.34,655.78,0.27977946]
[1746948221033,0.2417301,659.33,655.78,0.27977946]
[1746948221234,0.50635278,659.33,655.78,0.27977946]
[1746948221529,0.2417301,659.32,655.78,0.27977946]
[1746948221835,0.2417301,659.31,655.78,0.27977946]
[1746948222235,0.2417301,659.3,655.78,0.27977946]